fUSD/lending_fUSD_20241216
["ID","MTS","AMOUNT","RATE_DAILY","PERIOD"]
[345583438,1734369070182,-934.49413062,0.00025,2]
[345583439,1734369070193,-1216.08388454,0.00025,2]
[345583440,1734369070204,-646.8710417,0.00025,2]
[345583441,1734369070215,-3277.15000005,0.00025,2]
[345583442,1734369070227,-1225.32,0.00025,2]
[345583443,1734369070238,-30350.37017058,0.00025,2]
[345583444,1734369298143,450.0,0.00013,2]
[345583445,1734369299292,500.0,0.00015,2]
[345583446,1734369464052,200.0,0.00015,3]
[345583448,1734369908341,8197.47029221,0.0001,2]
[345583449,1734369908366,10000.0,0.0001,2]
[345583450,1734369908390,10000.0,0.0001,2]
[345583451,1734369908414,10000.0,0.0001,2]
[345583452,1734369908438,10000.0,0.0001,2]
[345583453,1734369908467,106107.41498389,0.0001,2]
[345583455,1734369947086,159.17,0.00010137,2]
[345583463,1734370032143,-550.0,0.00017,2]
[345583464,1734370032164,-200.0,0.00018,4]
[345583465,1734370032185,-170.02,0.00018898,2]
[345583466,1734370032205,-630.087861,0.00018905,2]
[345583467,1734370032226,-300.0,0.00018999,2]
[345583468,1734370032248,-600.0,0.00019,2]
[345583469,1734370032269,-11509.05583222,0.00019,2]
[345583470,1734370032290,-24241.66476955,0.0001998,2]
[345583471,1734370042098,-2518.81198688,0.0001998,2]
[345583472,1734370081034,5085869.60165427,0.00013,2]
[345583491,1734370145101,-41501.45707637,0.00019,2]
[345583492,1734370145122,-6399.68460363,0.0001901,2]
[345583493,1734370145151,-9793.48278679,0.0001901,2]
[345583494,1734370145171,-2546.07954211,0.0001911,2]
[345583495,1734370145191,-514.0,0.0001997,2]
[345583496,1734370145216,-2108.96295495,0.0001998,2]
[345583497,1734370145237,-200.0,0.0002,5]
[345583498,1734370145257,-1803.0,0.0002,3]
[345583499,1734370145279,-1801.0,0.0002,3]
[345583500,1734370145300,-1801.0,0.0002,3]
[345583501,1734370145326,-1801.0,0.0002,3]
[345583502,1734370145347,-6500.0,0.0002,2]
[345583503,1734370145373,-297.18335743,0.0002,2]
[345583504,1734370145394,-31072.64492105,0.0002,2]
[345583505,1734370145416,-3818.21257485,0.0002,2]
[345583506,1734370145437,-3950.0,0.0002,2]
[345583507,1734370145460,-1235.27387555,0.0002,2]
[345583508,1734370145482,-2050.16269069,0.0002,2]
[345583509,1734370145502,-811.23986249,0.0002,2]
[345583510,1734370145523,-1084.31,0.00020238,2]
[345583511,1734370145544,-4000.413038,0.00020599,2]
[345583512,1734370145564,-650.0,0.00021,2]
[345583513,1734370145585,-10000.0,0.00021,2]
[345583514,1734370145606,-13652.24288599,0.00021,2]
[345583515,1734370145626,-400.0,0.00021,2]
[345583516,1734370145647,-708.28,0.0002141,2]
[345583517,1734370145669,-901.11,0.0002167,2]
[345583518,1734370145691,-5264.61526366,0.00021865,2]
[345583519,1734370145717,-313.47357333,0.00021878,2]
[345583520,1734370145740,-300.0,0.00021889,2]
[345583521,1734370145761,-27441.12207311,0.0002189,2]
[345583522,1734370153265,-30615.32936,0.0002189,2]
[345583523,1734370158110,-231827.1536,0.0002189,2]
[345583524,1734370161148,-176071.11218678,0.0002189,2]
[345583525,1734370161169,-15000.0,0.00021978,2]
[345583526,1734370161190,-2578.03566463,0.00022,3]
[345583527,1734370161214,-5264.61526359,0.0002219,2]
[345583528,1734370161235,-15000.0,0.00022322,2]
[345583529,1734370161256,-901.11,0.00022472,2]
[345583530,1734370199804,295.07715968,0.00021889,2]
[345583531,1734370200977,2953.33117815,0.0001924,2]
[345583532,1734370219023,1844.389,0.00022389,2]
[345583537,1734370231539,-1084.31,0.00022502,2]
[345583538,1734370231548,-1186.84,0.00022514,2]
[345583539,1734370231559,-915.47591036,0.00022514,2]
[345583540,1734370231603,-3162.29935323,0.00022514,2]
[345583541,1734370231808,-162.01,0.00022698,2]
[345583542,1734370231826,-490.03,0.00022754,2]
[345583543,1734370231836,-15000.0,0.00022756,2]
[345583544,1734370231845,-224.13,0.00022759,2]
[345583545,1734370231855,-250.0,0.00022802,2]
[345583547,1734370231864,-4639.43464677,0.00022839,2]
[345583549,1734370231876,-357.33195384,0.00022839,2]
[345583550,1734370231956,-267.84866298,0.00022839,2]
[345583551,1734370231967,-200.0,0.00022842,2]
[345583552,1734370231976,-250.0,0.00022855,2]
[345583553,1734370231986,-200.0,0.00022954,2]
[345583554,1734370231995,-15000.0,0.00022979,2]
[345583555,1734370232004,-700.0,0.00023,2]
[345583556,1734370232014,-444.34,0.00023077,2]
[345583557,1734370232024,-674.23,0.00023144,2]
[345583558,1734370232033,-10000.000001,0.00023158,2]
[345583559,1734370232042,-555.0,0.00023163,2]
[345583560,1734370232051,-5264.61526359,0.00023164,2]
[345583561,1734370232061,-1116.54,0.00023261,2]
[345583562,1734370232075,-901.11,0.00023273,2]
[345583563,1734370232084,-250.0,0.00023322,2]
[345583564,1734370232095,-774.75,0.00023342,2]
[345583565,1734370232104,-5264.61526359,0.00023488,2]
[345583566,1734370232114,-250.0,0.00023585,2]
[345583567,1734370232124,-490.03,0.00023596,2]
[345583568,1734370232133,-464.607,0.0002375,2]
[345583569,1734370232142,-5264.61526359,0.00023813,2]
[345583570,1734370232152,-181.49,0.00023891,2]
[345583571,1734370232162,-1000.0,0.00023894,2]
[345583572,1734370232172,-500.0,0.000239,8]
[345583573,1734370232181,-14112.76368325,0.00023987,2]
[345583574,1734370232191,-78284.02459284,0.00024,2]
[345583575,1734370232201,-2094.0,0.00024,2]
[345583576,1734370232214,-1100.0,0.00024,8]
[345583577,1734370232224,-769.47,0.00024041,2]
[345583578,1734370232233,-281.33,0.00024041,2]
[345583579,1734370232242,-901.11,0.00024075,2]
[345583580,1734370232251,-1600.0,0.000241,8]
[345583581,1734370232261,-5264.61526359,0.00024138,2]
[345583582,1734370232270,-425.0,0.00024141,2]
[345583583,1734370232279,-2200.0,0.000242,8]
[345583584,1734370232289,-444.34,0.0002423,2]
[345583585,1734370232298,-6772.7777,0.00024282,2]
[345583586,1734370232308,-711.9381,0.00024282,2]
[345583587,1734370232319,-2700.0,0.000243,8]
[345583588,1734370232332,-436.271,0.00024382,2]
[345583589,1734370232341,-817.0,0.00024382,2]
[345583590,1734370232351,-929.0,0.00024382,2]
[345583591,1734370232360,-1253.467,0.00024382,2]
[345583592,1734370232370,-3763.0,0.00024382,2]
[345583593,1734370232379,-3038.321,0.00024382,2]
[345583594,1734370232396,-540.052,0.00024382,2]
[345583595,1734370232406,-500.0,0.000244,8]
[345583596,1734370232415,-490.03,0.00024438,2]
[345583597,1734370232424,-5264.61526359,0.00024462,2]
[345583598,1734370232436,-450.364445,0.00024498,2]
[345583599,1734370232446,-500.0,0.000245,8]
[345583600,1734370232456,-42149.0,0.00024561,3]
[345583601,1734370232468,-1351.01836955,0.0002459,2]
[345583602,1734370232481,-2018.64,0.0002459,2]
[345583603,1734370232492,-56331.26128091,0.0002459,2]
[345583604,1734370232504,-4331.91194954,0.0002459,2]
[345583605,1734370232514,-1396.6705,0.00024598,2]
[345583606,1734370232524,-757.5821,0.00024598,2]
[345583607,1734370232533,-500.0,0.000246,8]
[345583608,1734370232542,-25023.83528071,0.00024625,2]
[345583609,1734370232553,-527.95507958,0.00024625,2]
[345583610,1734370232584,-779.86807682,0.00024625,2]
[345583611,1734370232596,-469.526895,0.00024625,2]
[345583612,1734370232607,-26073.81466788,0.00024625,2]
[345583613,1734370232617,-1159.536,0.00024639,7]
[345583614,1734370232626,-620.44,0.00024657,4]
[345583615,1734370232635,-520.51,0.00024657,4]
[345583616,1734370232644,-500.0,0.00024657,4]
[345583617,1734370232654,-530.44,0.00024657,4]
[345583618,1734370232663,-695.49,0.00024689,4]
[345583619,1734370232672,-500.0,0.00024689,4]
[345583620,1734370232681,-500.0,0.00024689,4]
[345583621,1734370232690,-356.71598766,0.00024689,4]
[345583622,1734370232699,-2397.54285638,0.0002469,2]
[345583623,1734370232710,-79302.64638306,0.0002469,2]
[345583624,1734370232722,-5808.66052674,0.0002469,2]
[345583625,1734370232731,-500.0,0.00024697,4]
[345583626,1734370232741,-530.09,0.00024697,4]
[345583627,1734370232750,-500.0,0.00024697,4]
[345583628,1734370232760,-500.0,0.00024697,4]
[345583629,1734370232770,-1000.0,0.00024697,4]
[345583630,1734370232779,-500.0,0.00024697,4]
[345583631,1734370232788,-620.44,0.00024697,4]
[345583632,1734370232797,-520.51,0.00024697,4]
[345583633,1734370232807,-500.0,0.00024697,4]
[345583634,1734370232816,-40894.641682,0.00024698,2]
[345583643,1734370238527,-2082.795,0.00024698,2]
[345583644,1734370239139,-598.57225139,0.00024689,4]
[345583645,1734370239149,-21747.690618,0.00024698,2]
[345583646,1734370239158,-12918.7814,0.00024698,2]
[345583647,1734370239167,-1482.7202,0.000247,2]
[345583648,1734370239176,-3000.0,0.000247,2]
[345583649,1734370239185,-1476.0,0.000247,2]
[345583650,1734370239194,-500.0,0.000247,9]
[345583651,1734370239203,-153.0,0.00024717,2]
[345583652,1734370239212,-153.0,0.00024717,2]
[345583653,1734370239222,-153.0,0.00024717,2]
[345583654,1734370239230,-153.0,0.00024717,2]
[345583655,1734370239239,-153.0,0.00024717,2]
[345583656,1734370239248,-153.0,0.00024717,2]
[345583657,1734370239257,-153.0,0.00024717,2]
[345583658,1734370239266,-153.0,0.00024717,2]
[345583659,1734370239275,-153.0,0.00024717,2]
[345583660,1734370239284,-153.0,0.00024717,2]
[345583661,1734370239293,-153.0,0.00024717,2]
[345583662,1734370239302,-153.0,0.00024717,2]
[345583664,1734370239311,-150.0,0.00024732,2]
[345583666,1734370239321,-150.0,0.00024732,2]
[345583667,1734370239333,-150.0,0.00024733,2]
[345583669,1734370239343,-150.0,0.00024737,2]
[345583671,1734370239353,-150.0,0.00024742,2]
[345583672,1734370239363,-378.23646012,0.00024747,2]
[345583674,1734370239372,-3000.0,0.0002475,2]
[345583675,1734370239382,-150.0,0.00024753,2]
[345583677,1734370239392,-150.0,0.00024756,2]
[345583679,1734370239403,-150.0,0.00024757,2]
[345583681,1734370239412,-150.0,0.00024765,2]
[345583682,1734370239425,-1084.31,0.00024765,2]
[345583683,1734370239434,-604.83823893,0.00024767,2]
[345583684,1734370239443,-150.0,0.00024771,2]
[345583685,1734370239452,-5000.0,0.0002478,2]
[345583686,1734370239461,-5264.61526359,0.00024787,2]
[345583687,1734370239470,-2108.58450098,0.00024787,2]
[345583688,1734370239479,-150.0,0.00024788,2]
[345583689,1734370239489,-604.83823893,0.00024788,2]
[345583690,1734370239497,-150.0,0.00024791,2]
[345583691,1734370239507,-500.0,0.00024796,4]
[345583692,1734370239516,-1000.0,0.00024796,2]
[345583693,1734370239525,-500.0,0.00024796,4]
[345583694,1734370239534,-500.0,0.00024796,4]
[345583695,1734370239542,-500.0,0.00024796,4]
[345583696,1734370239551,-500.0,0.00024796,4]
[345583697,1734370239560,-577.45057248,0.00024796,4]
[345583698,1734370239569,-378.56266596,0.00024797,4]
[345583699,1734370239580,-500.0,0.00024797,4]
[345583700,1734370239590,-500.0,0.00024797,4]
[345583701,1734370239599,-500.0,0.00024797,4]
[345583702,1734370239608,-500.0,0.00024797,4]
[345583703,1734370239618,-500.0,0.00024797,4]
[345583704,1734370239627,-500.0,0.00024797,4]
[345583705,1734370239636,-150.0,0.00024798,2]
[345583706,1734370239646,-500.0,0.00024799,2]
[345583707,1734370239655,-185.84,0.000248,2]
[345583708,1734370239664,-500.0,0.000248,2]
[345583709,1734370239674,-500.0,0.000248,2]
[345583710,1734370239683,-1000.0,0.000248,2]
[345583711,1734370239692,-47610.63166926,0.000248,2]
[345583712,1734370239702,-936.0,0.000248,9]
[345583713,1734370239712,-150.0,0.00024802,2]
[345583714,1734370239721,-150.0,0.00024806,2]
[345583715,1734370239730,-150.0,0.00024814,2]
[345583716,1734370239740,-150.0,0.00024824,2]
[345583717,1734370239749,-706.36987889,0.00024827,10]
[345583718,1734370239758,-706.36987889,0.0002483,10]
[345583719,1734370239767,-1048.73392695,0.00024831,10]
[345583720,1734370239777,-340.31072139,0.00024832,10]
[345583721,1734370239787,-4589.01953842,0.00024832,10]
[345583722,1734370239796,-12030.29936162,0.00024833,10]
[345583723,1734370239805,-818.02605041,0.00024833,10]
[345583724,1734370239814,-222.026907,0.00024834,10]
[345583725,1734370239825,-6684.99253138,0.00024835,10]
[345583726,1734370239834,-1048.73392695,0.00024836,10]
[345583727,1734370239843,-2621.4781768,0.00024836,10]
[345583728,1734370239852,-4589.01953842,0.00024837,10]
[345583729,1734370239862,-706.36987889,0.00024839,10]
[345583730,1734370239871,-150.0,0.00024839,2]
[345583731,1734370239880,-150.0,0.00024841,2]
[345583732,1734370239889,-2108.58450096,0.00024844,2]
[345583733,1734370239898,-222.026907,0.00024844,10]
[345583734,1734370239907,-340.31072139,0.00024845,10]
[345583735,1734370239916,-222.026907,0.00024845,10]
[345583736,1734370239926,-6684.99253138,0.00024847,10]
[345583737,1734370239935,-150.0,0.00024848,2]
[345583738,1734370239944,-706.36987889,0.00024848,10]
[345583739,1734370239953,-2621.4781768,0.00024849,10]
[345583740,1734370239962,-150.0,0.00024851,2]
[345583741,1734370239971,-4589.01953842,0.00024852,10]
[345583742,1734370239980,-6684.99253138,0.00024853,10]
[345583743,1734370239990,-2621.4781768,0.00024856,10]
[345583744,1734370239999,-150.0,0.00024858,2]
[345583745,1734370240008,-818.02605041,0.00024858,10]
[345583746,1734370240017,-340.31072139,0.00024858,10]
[345583747,1734370240026,-150.0,0.00024859,2]
[345583748,1734370240035,-150.0,0.00024859,2]
[345583749,1734370240044,-1048.73392695,0.00024861,10]
[345583750,1734370240053,-818.02605041,0.00024862,10]
[345583751,1734370240062,-706.36987889,0.00024862,10]
[345583752,1734370240071,-706.36987889,0.00024863,10]
[345583753,1734370240082,-340.31072139,0.00024868,10]
[345583754,1734370240091,-222.026907,0.0002487,10]
[345583755,1734370240100,-6684.99253138,0.0002487,10]
[345583756,1734370240109,-6684.99253138,0.00024871,10]
[345583757,1734370240119,-2621.4781768,0.00024871,10]
[345583758,1734370240128,-500.0,0.00024873,2]
[345583759,1734370240138,-500.0,0.00024873,2]
[345583760,1734370240147,-500.0,0.00024873,2]
[345583761,1734370240156,-500.0,0.00024873,2]
[345583762,1734370240165,-222.026907,0.00024875,10]
[345583763,1734370240174,-4589.01953842,0.00024876,10]
[345583764,1734370240183,-901.11,0.00024877,2]
[345583765,1734370240192,-12030.29936162,0.00024878,10]
[345583766,1734370240201,-340.31072139,0.00024878,10]
[345583767,1734370240210,-12030.29936162,0.00024879,10]
[345583768,1734370240219,-620.44,0.00024879,4]
[345583769,1734370240229,-620.44,0.00024879,4]
[345583770,1734370240239,-620.44,0.00024879,4]
[345583771,1734370240248,-620.44,0.00024879,4]
[345583772,1734370240257,-620.44,0.00024879,4]
[345583773,1734370240265,-620.44,0.00024879,4]
[345583774,1734370240274,-620.44,0.00024879,4]
[345583775,1734370240284,-620.44,0.00024879,4]
[345583776,1734370240293,-620.44,0.00024879,4]
[345583777,1734370240302,-620.44,0.00024879,4]
[345583778,1734370240311,-620.44,0.00024879,4]
[345583779,1734370240320,-620.44,0.00024879,4]
[345583780,1734370240332,-620.44,0.00024879,4]
[345583781,1734370240341,-620.44,0.00024879,4]
[345583782,1734370240350,-620.44,0.00024879,4]
[345583783,1734370240359,-620.44,0.00024879,4]
[345583784,1734370240368,-620.44,0.00024879,4]
[345583785,1734370240377,-620.44,0.00024879,4]
[345583786,1734370240392,-620.44,0.00024879,4]
[345583787,1734370240402,-620.44,0.00024879,4]
[345583788,1734370240411,-620.44,0.00024879,4]
[345583789,1734370240420,-620.48,0.00024879,4]
[345583790,1734370240431,-520.51,0.00024879,4]
[345583791,1734370240440,-520.51,0.00024879,4]
[345583792,1734370240450,-520.51,0.00024879,4]
[345583793,1734370240461,-520.51,0.00024879,4]
[345583794,1734370240471,-520.51,0.00024879,4]
[345583795,1734370240480,-520.51,0.00024879,4]
[345583796,1734370240491,-520.51,0.00024879,4]
[345583797,1734370240500,-520.51,0.00024879,4]
[345583798,1734370240509,-520.51,0.00024879,4]
[345583799,1734370240518,-520.51,0.00024879,4]
[345583800,1734370240528,-520.51,0.00024879,4]
[345583801,1734370240537,-520.51,0.00024879,4]
[345583802,1734370240547,-520.51,0.00024879,4]
[345583803,1734370240557,-520.51,0.00024879,4]
[345583804,1734370240566,-520.51,0.00024879,4]
[345583805,1734370240580,-520.51,0.00024879,4]
[345583806,1734370240590,-520.51,0.00024879,4]
[345583807,1734370240599,-520.51,0.00024879,4]
[345583808,1734370240608,-520.51,0.00024879,4]
[345583809,1734370240618,-520.51,0.00024879,4]
[345583810,1734370240627,-520.51,0.00024879,4]
[345583811,1734370240637,-520.74,0.00024879,4]
[345583812,1734370240648,-500.0,0.00024879,4]
[345583813,1734370240658,-639.67808958,0.00024879,4]
[345583814,1734370240668,-818.02605041,0.0002488,10]
[345583815,1734370240678,-4589.01953842,0.0002488,10]
[345583816,1734370240688,-150.0,0.0002488,2]
[345583817,1734370240697,-6630656.25568827,0.0002488,2]
[345583818,1734370240706,-2621.4781768,0.00024881,10]
[345583819,1734370240715,-12030.29936162,0.00024882,10]
[345583820,1734370240724,-818.02605041,0.00024884,10]
[345583821,1734370240733,-818.02605041,0.00024884,10]
[345583823,1734370240742,-1048.73392695,0.00024885,10]
[345583824,1734370240751,-695.49,0.00024887,4]
[345583825,1734370240760,-203.90311699,0.00024887,4]
[345583826,1734370240770,-12030.29936162,0.00024887,10]
[345583827,1734370240779,-32297.0466994,0.00024888,2]
[345583828,1734370240789,-2621.4781768,0.00024889,10]
[345583829,1734370240798,-4589.01953842,0.00024889,10]
[345583831,1734370240808,-340.31072139,0.0002489,10]
[345583832,1734370240818,-1048.73392695,0.00024892,10]
[345583833,1734370240830,-222.026907,0.00024895,10]
[345583834,1734370240840,-12030.29936162,0.00024895,10]
[345583835,1734370240849,-6684.99253138,0.00024897,10]
[345583836,1734370240858,-1048.73392695,0.00024897,10]
[345583837,1734370240868,-500.0,0.00024897,4]
[345583838,1734370240877,-500.0,0.00024897,4]
[345583839,1734370240887,-150.0,0.00024898,2]
[345583840,1734370241034,-150.0,0.00024899,2]
[345583841,1734370241044,-270.6771,0.000249,2]
[345583842,1734370241053,-500.0,0.000249,2]
[345583843,1734370241063,-220.0,0.000249,2]
[345583844,1734370241072,-50000.0,0.000249,3]
[345583845,1734370241086,-245.25,0.000249,31]
[345583846,1734370241096,-245.25,0.000249,31]
[345583847,1734370241105,-245.25,0.000249,31]
[345583848,1734370241114,-245.25,0.000249,31]
[345583849,1734370241124,-245.25,0.000249,31]
[345583850,1734370241133,-245.25,0.000249,31]
[345583851,1734370241142,-245.25,0.000249,31]
[345583852,1734370241151,-245.25,0.000249,31]
[345583853,1734370241161,-245.25,0.000249,31]
[345583854,1734370241170,-245.25,0.000249,31]
[345583855,1734370241180,-245.25,0.000249,31]
[345583856,1734370241189,-245.25,0.000249,31]
[345583857,1734370241198,-245.25,0.000249,31]
[345583858,1734370241208,-245.25,0.000249,31]
[345583859,1734370241217,-245.25,0.000249,31]
[345583860,1734370241226,-245.25,0.000249,31]
[345583861,1734370241235,-1000.0,0.000249,2]
[345583862,1734370241245,-2108.58450096,0.000249,2]
[345583863,1734370241254,-150.0,0.00024909,2]
[345583864,1734370241263,-150.0,0.0002491,2]
[345583865,1734370241273,-150.0,0.00024943,2]
[345583866,1734370241283,-150.0,0.00024952,2]
[345583867,1734370241291,-500.0,0.00024958,4]
[345583868,1734370241301,-500.0,0.00024958,4]
[345583869,1734370241310,-150.0,0.00024959,2]
[345583870,1734370241319,-150.0,0.00024961,2]
[345583871,1734370241331,-150.0,0.00024963,2]
[345583872,1734370241340,-150.0,0.00024969,2]
[345583873,1734370241349,-150.0,0.00024969,2]
[345583874,1734370241358,-150.0,0.00024971,2]
[345583875,1734370241367,-500.0,0.00024973,2]
[345583876,1734370241376,-501.80937079,0.00024973,2]
[345583877,1734370241386,-500.0,0.00024973,2]
[345583878,1734370241398,-150.0,0.00024978,2]
[345583879,1734370241406,-150.0,0.0002498,2]
[345583881,1734370241416,-150.0,0.00024981,2]
[345583883,1734370241425,-150.0,0.00024981,2]
[345583884,1734370241435,-150.0,0.00024982,2]
[345583885,1734370241444,-150.0,0.00024984,2]
[345583886,1734370241454,-500.0,0.00024989,4]
[345583887,1734370241462,-500.0,0.00024989,4]
[345583888,1734370241474,-150.0,0.00024991,2]
[345583891,1734370241484,-300.0,0.00024992,2]
[345583892,1734370241493,-500.0,0.00024994,4]
[345583894,1734370241502,-500.0,0.00024994,4]
[345583895,1734370241511,-500.0,0.00024994,4]
[345583896,1734370241520,-530.09,0.00024994,4]
[345583897,1734370241529,-500.0,0.00024994,4]
[345583898,1734370241538,-500.0,0.00024994,4]
[345583899,1734370241547,-1000.0,0.00024994,4]
[345583900,1734370241556,-247.76,0.00024994,4]
[345583901,1734370241565,-4075.2684888,0.00024995,2]
[345583902,1734370241574,-3327.7314211,0.00024995,2]
[345583903,1734370241584,-2580.1943534,0.00024995,2]
[345583904,1734370241593,-1832.6572857,0.00024995,2]
[345583905,1734370241602,-1085.120218,0.00024995,2]
[345583906,1734370241611,-337.5831503,0.00024995,2]
[345583907,1734370241621,-2298.0583706,0.00024995,2]
[345583908,1734370241629,-1876.5195639,0.00024995,2]
[345583909,1734370241638,-1454.9807572,0.00024995,2]
[345583910,1734370241647,-1033.4419505,0.00024995,2]
[345583911,1734370241657,-611.9031438,0.00024995,2]
[345583912,1734370241666,-190.3643371,0.00024995,2]
[345583913,1734370241675,-243.44,0.00024996,4]
[345583914,1734370241684,-150.0,0.00024997,30]
[345583915,1734370241693,-308.69290276,0.00024999,10]
[345583916,1734370241702,-300.0,0.00024999,10]
[345583917,1734370241711,-300.0,0.00024999,10]
[345583918,1734370241720,-300.0,0.00024999,10]
[345583919,1734370241729,-300.0,0.00024999,10]
[345583920,1734370241740,-1000.0,0.00024999,2]
[345583921,1734370241751,-861.73,0.00024999,2]
[345583922,1734370241760,-2000.0,0.00024999,2]
[345583923,1734370241772,-39031.64,0.00024999,2]
[345583924,1734370241782,-500.0,0.00024999,4]
[345583925,1734370241791,-500.0,0.00024999,4]
[345583926,1734370241800,-229.84,0.00024999,4]
[345583927,1734370241809,-1000.0,0.00024999,2]
[345583928,1734370241819,-1000.0,0.00024999,2]
[345583929,1734370241831,-1000.0,0.00024999,2]
[345583930,1734370241840,-1000.0,0.00024999,2]
[345583931,1734370241849,-1000.0,0.00024999,2]
[345583932,1734370241858,-1000.0,0.00024999,2]
[345583933,1734370241867,-1000.0,0.00024999,2]
[345583934,1734370241875,-1000.0,0.00024999,2]
[345583935,1734370241885,-892.69792533,0.00024999,2]
[345583936,1734370241894,-500.0,0.00024999,4]
[345583937,1734370241903,-500.0,0.00024999,4]
[345583938,1734370241912,-500.0,0.00024999,4]
[345583939,1734370241921,-500.0,0.00024999,4]
[345583940,1734370241931,-500.0,0.00024999,4]
[345583941,1734370241940,-500.0,0.00024999,4]
[345583942,1734370241949,-500.0,0.00024999,4]
[345583943,1734370241958,-500.0,0.00024999,4]
[345583944,1734370241968,-500.0,0.00024999,4]
[345583945,1734370241977,-181.71297436,0.00024999,4]
[345583946,1734370241986,-530.09,0.00024999,4]
[345583947,1734370241995,-530.09,0.00024999,4]
[345583948,1734370242004,-530.09,0.00024999,4]
[345583949,1734370242013,-530.09,0.00024999,4]
[345583950,1734370242022,-530.09,0.00024999,4]
[345583951,1734370242032,-530.09,0.00024999,4]
[345583952,1734370242041,-530.09,0.00024999,4]
[345583953,1734370242051,-530.09,0.00024999,4]
[345583954,1734370242060,-530.09,0.00024999,4]
[345583955,1734370242069,-530.09,0.00024999,4]
[345583956,1734370242079,-530.09,0.00024999,4]
[345583957,1734370242088,-530.09,0.00024999,4]
[345583958,1734370242098,-530.09,0.00024999,4]
[345583959,1734370242107,-530.09,0.00024999,4]
[345583960,1734370242116,-530.09,0.00024999,4]
[345583961,1734370242125,-530.09,0.00024999,4]
[345583962,1734370242135,-530.09,0.00024999,4]
[345583963,1734370242144,-530.09,0.00024999,4]
[345583964,1734370242153,-530.09,0.00024999,4]
[345583965,1734370242162,-530.09,0.00024999,4]
[345583966,1734370242171,-530.09,0.00024999,4]
[345583967,1734370242180,-530.24,0.00024999,4]
[345583968,1734370242189,-500.0,0.00024999,4]
[345583969,1734370242198,-500.0,0.00024999,4]
[345583970,1734370242207,-500.0,0.00024999,4]
[345583971,1734370242216,-181.23,0.00024999,4]
[345583972,1734370242225,-500.0,0.00024999,4]
[345583973,1734370242235,-512.97784298,0.00024999,4]
[345583974,1734370242246,-1000.0,0.00024999,4]
[345583976,1734370242255,-1000.0,0.00024999,4]
[345583978,1734370242264,-1000.0,0.00024999,4]
[345583979,1734370242273,-695.49,0.00024999,4]
[345583981,1734370242282,-1091.16099274,0.00024999,4]
[345583983,1734370242291,-695.49,0.00024999,4]
[345583984,1734370242301,-695.49,0.00024999,4]
[345583985,1734370242309,-695.49,0.00024999,4]
[345583986,1734370242318,-695.49,0.00024999,4]
[345583987,1734370242330,-695.49,0.00024999,4]
[345583988,1734370242341,-695.49,0.00024999,4]
[345583989,1734370242351,-695.49,0.00024999,4]
[345583990,1734370242360,-695.49,0.00024999,4]
[345583992,1734370242369,-695.49,0.00024999,4]
[345583993,1734370242378,-695.49,0.00024999,4]
[345583994,1734370242390,-695.49,0.00024999,4]
[345583995,1734370242399,-695.49,0.00024999,4]
[345583996,1734370242408,-695.49,0.00024999,4]
[345583997,1734370242416,-695.49,0.00024999,4]
[345583998,1734370242427,-695.49,0.00024999,4]